Cogmind - Beta 10.2 @@@ ROGUE MODE // 2021.06.14 @ 23:07:45 Player: Alix Result: Destroyed by Y-45 Defender with Heavy Assault Rifle Performance ------------- Evolutions (1) 500 Regions Visited (3) 600 Robots Destroyed (12) 60 Value Destroyed (299) 299 Prototype IDs (0) 0 Alien Tech Used (0) 0 Bonus (0) 0 TOTAL SCORE: 1459 Bonus ------- None Cogmind --------- Core Integrity 0/400 Matter 194/300 Energy 56/100 System Corruption 0% Temperature Cool (10) Movement Hovering (60) Location -9/Materials Parts ------- > --- POWER (2) -------- (None) > --- PROPULSION (3) --- Improved Hover Unit > --- UTILITY (2) ------ (None) > --- WEAPON (2) ------- (None) > --- INVENTORY (4) ---- (None) Peak State ------------ > --- POWER ------------ Ion Engine > --- PROPULSION ------- Aluminum Leg Aluminum Leg > --- UTILITY ---------- Improved Heat Sink Tractor Beam > --- WEAPON ----------- EM Pulse Gun Light Assault Rifle > --- INVENTORY -------- Light Ion Engine Light Cannon Grenade Launcher [Rating: 9] Favorites ----------- Power Ion Engine Engine Ion Engine Propulsion Aluminum Leg Leg Aluminum Leg Wheel Wheel Hover Unit Improved Hover Unit Flight Unit VTOL Module Utility Heat Sink Device Heat Sink Weapon Light Assault Rifle Energy Gun EM Pulse Gun Ballistic Gun Light Assault Rifle Ballistic Cannon Light Cannon Launcher Grenade Launcher Build | -11 -10 -10 -9 ------- Run | Scr Mat Min Mat Slots Evolved 2 | . . . 2 Power 1 | . . . 1 Propulsion 1 | . . . 1 Utility . | . . . . Weapon . | . . . . Parts Attached 25 | 7 6 2 10 Power 3 | 1 1 . 1 Engine 3 | 1 1 . 1 Core . | . . . . Reactor . | . . . . Propulsion 12 | 2 . 2 8 Treads . | . . . . Leg 4 | 2 . . 2 Wheel 2 | . . 2 . Hover 2 | . . . 2 Flight 4 | . . . 4 Utility 3 | . 3 . . Device 3 | . 3 . . Storage . | . . . . Processor . | . . . . Hackware . | . . . . Protection . | . . . . Artifact . | . . . . Weapon 7 | 4 2 . 1 Energy Gun 2 | 2 . . . Energy Cannon . | . . . . Ballistic Gun 3 | 2 . . 1 Ballistic Cannon 1 | . 1 . . Launcher 1 | . 1 . . Special Weapon . | . . . . Impact Weapon . | . . . . Slashing Weapon . | . . . . Piercing Weapon . | . . . . Special Melee Weapon . | . . . . Unidentified Prototypes . | . . . . Parts Lost 16 | . 4 3 9 Power 2 | . . . 2 Propulsion 7 | . . 2 5 Utility 3 | . 2 . 1 Weapon 4 | . 2 1 1 Highest Loss Streak 9 | . 4 3 9 Average Slot Usage (%) 65 | . 79 65 39 Engine 13 | . 14 14 11 Leg 18 | . 28 21 1 Wheel 2 | . . 2 6 Hover 1 | . . . 4 Device 9 | . 9 14 5 Energy Gun 4 | . 9 . . Ballistic Gun 7 | . 10 . 7 Ballistic Cannon 4 | . 3 12 . Launcher 1 | . 2 . . Naked Turns 8 | . . . 8 Heaviest Build 12 | 8 12 9 10 Greatest Support 20 | 20 20 20 20 Greatest Overweight (x) 2 | . . 2 1 Average Overweight (x) . | . . . . Largest Inventory Capacity 4 | 4 4 4 4 Average Capacity 4 | 4 4 4 4 Most Carried 4 | 4 4 2 3 Average Carried 1 | 1 2 2 . Final Capacity 4 | 4 4 4 4 Final Carried 2 | 1 2 2 . Class Distribution -------------------- 91% | Mutant 8% | Scavenger-Mutant Dominant Class ---------------- Mutant | -10/Materials Mutant | -10/Mines Mutant | -9/Materials Resources | -11 -10 -10 -9 ----------- Run | Scr Mat Min Mat Matter Collected 403 | 221 145 23 14 Remotely 80 | . 80 . . Salvage Created 381 | . 367 . 14 Parts 20 | . 18 . 2 Haulers Intercepted . | . . . . Recyclers Shooed 3 | . 3 . . Parts Field Recycled . | . . . . Retrieved Matter . | . . . . Parts Self-Destructed . | . . . . Prevented . | . . . . Kills | -11 -10 -10 -9 ------- Run | Scr Mat Min Mat Combat Hostiles Destroyed 8 | . 7 . 1 Guns 4 | . 3 . 1 Cannons 3 | . 3 . . AOE 1 | . 1 . . Classes Destroyed 6 | . 5 . 1 Worker 1 | . 1 . . Builder 1 | . 1 . . Recycler 1 | . 1 . . Watcher 1 | . 1 . . Swarmer 1 | . . . 1 Grunt 7 | . 7 . . Best Kill Streak 6 | . 6 . 1 Combat Bots Only 4 | . 4 . 1 Max Kills in Single Turn 2 | . 2 . 1 Gunslinging . | . . . . Exploded 1 | . 1 . . Melee . | . . . . Uniques/NPCs Destroyed . | . . . . Combat | -11 -10 -10 -9 -------- Run | Scr Mat Min Mat Damage Taken 1629 | . 474 416 739 Core 623 | . 54 163 406 Absorbed by Shields . | . . . . Core Remaining (%) 56 | 100 . 13 . Volleys Fired 54 | 6 27 6 15 Largest 2 | 1 2 1 1 Hottest 65 | 20 65 35 20 Shots Fired 80 | 6 53 6 15 Gun 60 | 6 39 . 15 Cannon 14 | . 8 6 . Launcher 6 | . 6 . . Special . | . . . . Kinetic 55 | 6 28 6 15 Thermal . | . . . . Explosive 6 | . 6 . . Electromagnetic 19 | . 19 . . Robot Hit Streak 18 | 2 18 2 3 Robot Miss Streak 3 | 1 2 2 3 Penetration Max . | . . . . Secondary Targets . | . . . . Shots Hit Robots 49 | 3 36 3 7 Core Hits 27 | . 23 1 3 Critical Hits . | . . . . Critical Kills . | . . . . Critical Parts Destroyed . | . . . . Melee Attacks . | . . . . Impact . | . . . . Slashing . | . . . . Piercing . | . . . . Sneak Attacks . | . . . . Combat Hostiles . | . . . . Follow-up Attacks . | . . . . Damage Inflicted 978 | 21 845 58 54 Guns 433 | 21 363 . 49 Cannons 124 | . 71 53 . Explosions 411 | . 411 . . Melee . | . . . . Ramming 10 | . . 5 5 Kinetic 307 | 21 184 53 49 Thermal . | . . . . Explosive 411 | . 411 . . Electromagnetic 250 | . 250 . . Impact . | . . . . Slashing . | . . . . Piercing . | . . . . Highest Corruption . | . . . . Average Corruption . | . . . . Corruption Purged . | . . . . Overload Shots . | . . . . Overflow Damage . | . . . . Projectiles . | . . . . Explosions . | . . . . Melee . | . . . . Knockbacks 3 | . 1 2 . Impact . | . . . . Kinetic 3 | . 1 2 . Secondary . | . . . . Self-Inflicted Damage 47 | . 44 2 1 Shots 2 | . 2 . . Rammed 4 | . . 2 2 Targets Rammed 6 | . . 2 4 Kicked 2 | . . . 2 Crushed . | . . . . Highest Temperature 111 | . 111 10 . Average Temperature 33 | . 35 6 . Received Heat Transfer 512 | . 201 191 120 Siege Activations . | . . . . Robots Corrupted 1 | . 1 . . Combat Hostiles . | . . . . Parts Fried 4 | . 4 . . Impact Corruptions . | . . . . Robots Melted . | . . . . Combat Hostiles . | . . . . Parts Melted . | . . . . Heat Transferred . | . . . . Parts Sabotaged . | . . . . Parts Stolen . | . . . . Parts Stripped . | . . . . Power Chain Reactions . | . . . . Missiles Intercepted . | . . . . Alert | -11 -10 -10 -9 ------- Run | Scr Mat Min Mat Peak Influence 179 | . 179 95 40 Initial 65 | . . 65 25 Average 47 | . 63 80 23 Maximum Alert Level . | . . . . Low Security (%) 100 | 100 100 100 100 Level 1 . | . . . . Level 2 . | . . . . Level 3 . | . . . . Level 4 . | . . . . Level 5 . | . . . . High Security . | . . . . Max Security . | . . . . Squads Dispatched 5 | . 3 . 2 Investigation 2 | . 1 . 1 Extermination . | . . . . Reinforcement 3 | . 2 . 1 Assault . | . . . . Garrison . | . . . . Intercept . | . . . . Construction Impeded . | . . . . Haulers Reinforced . | . . . . Stealth | -11 -10 -10 -9 --------- Run | Scr Mat Min Mat Distress Signals 2 | . . . 2 Communications Jammed . | . . . . Distress Signals . | . . . . Times Spotted 34 | . 13 8 13 Peak Tracking Total 9 | . 4 5 9 Tactical Retreats 2 | . . 1 1 Traps | -11 -10 -10 -9 ------- Run | Scr Mat Min Mat Traps Triggered 1 | . . . 1 Indirectly . | . . . . Trap Hack Attempts . | . . . . Triggered . | . . . . Disarmed . | . . . . Reprogrammed . | . . . . Reused . | . . . . Traps Extracted . | . . . . Installed . | . . . . Triggered 1 | . 1 . . Machines | -11 -10 -10 -9 ---------- Run | Scr Mat Min Mat Machines Disabled 1 | . 1 . . Max in Single Turn 1 | . 1 . . Machines Sabotaged . | . . . . Garrisons Compromised . | . . . . Overloaded Fab Kills . | . . . . Fab Network Shutdowns . | . . . . Hacking | -11 -10 -10 -9 --------- Run | Scr Mat Min Mat Machines Accessed 2 | . 1 . 1 Terminals 1 | . 1 . . Fabricators . | . . . . Repair Stations . | . . . . Recycling Units 1 | . . . 1 Scanalyzers . | . . . . Garrison Access . | . . . . Total Hacks 6 | . 3 . 3 Successful 6 | . 3 . 3 Failed . | . . . . Catastrophic . | . . . . Database Lockouts . | . . . . Manual . | . . . . Terminals 3 | . 3 . . Fabricators . | . . . . Repair Stations . | . . . . Recycling Units 3 | . . . 3 Scanalyzers . | . . . . Garrison Access . | . . . . Terminal Hacks 3 | . 3 . . Record 1 | . 1 . . Emergency Access Points 1 | . 1 . . Dispatch Records 1 | . 1 . . Fabricator Hacks . | . . . . Repair Station Hacks . | . . . . Recycling Unit Hacks 3 | . . . 3 Recycle Component 2 | . . . 2 Process 1 | . . . 1 Scanalyzer . | . . . . Garrison Access Hacks . | . . . . Unauthorized Hacks . | . . . . Terminals . | . . . . Fabricators . | . . . . Repair Stations . | . . . . Recycling Units . | . . . . Scanalyzers . | . . . . Garrison Access . | . . . . Data Cores Recovered . | . . . . Used . | . . . . Hacking Detections 2 | . 1 . 1 Full Trace Events 1 | . 1 . . Feedback Events . | . . . . Feedback Blocked . | . . . . Robot Schematics Acquired . | . . . . Robots Built . | . . . . Matter . | . . . . Time . | . . . . Total Robot Build Rating . | . . . . Part Schematics Acquired . | . . . . Parts Built . | . . . . Matter . | . . . . Time . | . . . . Total Part Build Rating . | . . . . Parts Repaired . | . . . . Time . | . . . . Parts Recycled 2 | . . . 2 Recycled Matter 24 | . . . 24 Retrieved Matter . | . . . . Retrieved Components . | . . . . Parts Scanalyzed . | . . . . Part Schematics Acquired . | . . . . Parts Damaged . | . . . . Bothacking | -11 -10 -10 -9 ------------ Run | Scr Mat Min Mat Used RIF Installer . | . . . . Robots Hacked . | . . . . Non-combat . | . . . . Combat . | . . . . Robot Hacks Applied . | . . . . Relay Couplers Released . | . . . . Robots Rewired . | . . . . Allies Hacked . | . . . . Hacks Repelled . | . . . . Allies | -11 -10 -10 -9 -------- Run | Scr Mat Min Mat Total Allies . | . . . . Largest Group . | . . . . Highest-Rated Group . | . . . . Highest-Rated Ally . | . . . . Total Orders . | . . . . Ally Attacks . | . . . . Total Damage . | . . . . Kills . | . . . . Allies Corrupted . | . . . . Allies Melted . | . . . . Intel | -11 -10 -10 -9 ------- Run | Scr Mat Min Mat Robot Analysis Total . | . . . . Derelict Logs Recovered . | . . . . Drone Launches . | . . . . Drone Recoveries . | . . . . Exploration | -11 -10 -10 -9 ------------- Run | Scr Mat Min Mat Turns Passed 594 | 89 241 121 143 Spaces Moved 389 | 56 118 86 129 Core 46 | 21 . 10 15 Treads . | . . . . Legs 233 | 35 118 71 9 Wheels 46 | . . 5 41 Hover 53 | . . . 53 Flight 11 | . . . 11 Fastest Speed 34 | 50 120 80 34 Average Speed 101 | 93 120 121 74 Slowest Speed 150 | 120 120 150 120 Overloaded Moves . | . . . . Propulsion Burnouts . | . . . . Robots Hopped . | . . . . Cave-ins Triggered . | . . . . Exploration Rate (%) 18 | 5 21 32 14 Regions Visited 3 Branch Regions 1 Pre-discovered Areas . | . . . . Known Exits Taken . | . . . . Unknown Exits Taken 3 | 1 1 1 . Scrap Searched . | . . . . Spaces Dug . | . . . . Terrain Destroyed 29 | . 29 . . Melee . | . . . . Projectile 1 | . 1 . . AOE 28 | . 28 . . Terrain Rammed . | . . . . Walls Destroyed . | . . . . Machines Disabled . | . . . . Actions | -11 -10 -10 -9 --------- Run | Scr Mat Min Mat Total 513 | 88 168 95 162 Wait 23 | 12 11 . . Move 386 | 55 117 85 129 Hop . | . . . . Pick Up 14 | 6 6 . 2 Fast Attach 5 | . . 2 3 Attach 16 | 7 4 . 5 Detach 4 | 2 . . 2 Swap 4 | . 2 . 2 Drop 1 | . 1 . . Fire 54 | 6 27 6 15 Melee . | . . . . Ram 1 | . . 1 . Kick 5 | . . 1 4 Crush . | . . . . Escape Stasis . | . . . . Rewire . | . . . . Trap . | . . . . Miscellaneous . | . . . . Route ------- -11/Scrapyard -10/Materials -10/Mines -9/Materials (discovered 1 exit: [*Min]) History --------- Turn | Location | Event 12 | -11/Scrapyard | Discovered new exit (range 15) 90 | -11/Scrapyard | Entered Materials 154 | -10/Materials | Discovered new exit (range 14) 300 | -10/Materials | Build established: Mutant 331 | -10/Materials | Entered Mines 332 | -10/Mines | Assembled infested the area 352 | -10/Mines | Lost 4 parts (2u2w) 411 | -10/Mines | Core integrity fell below 50% 429 | -10/Mines | Discovered new exit (range 16) 437 | -10/Mines | Core integrity fell below 20% 452 | -10/Mines | Entered Materials 452 | -9/Materials | Evolved 2 slots: Power x1, Propulsion x1 477 | -9/Materials | Lost 3 parts (2n1w) 562 | -9/Materials | Discovered new exit (range 16) 563 | -9/Materials | Core integrity fell below 50% 576 | -9/Materials | Core integrity fell below 20% 595 | -9/Materials | Destroyed by Y-45 Defender with Heavy Assault Rifle Last Messages --------------- O-16 Technician locks terminal. Heat Sink destroyed. S-10 Pest destroyed. Imp. Hover Unit destroyed. Lgt. Assault Rifle destroyed. Lgt. Ion Engine destroyed. Kicked S-10 Pest out of the way. Acquired 14 matter. Slammed into S-10 Pest. Kicked Y-45 Defender out of the way. W-16 Scout sends out distress signal. Slammed into K-01 Serf. EXIT=FOUND Acquired VTOL Module. Imp. Aluminum Leg destroyed. VTOL Module destroyed. Triggered Alarm Trap. An alarm sounds. ALERT: Alarm triggered, dispatching investigation squad. Acquired Imp. Hover Unit. Map ----- +----------------------------------------------------+ | ?????????? ########### # | | ?????????< ^ * = # | | ??????????? ##############+####### | | ??????????????#/#### == #??????????? ????? | | ???????????????????# = #??????????# #??? | | ??????????????????## = [ #??????????# """ #??? | | ??????????????????+ +??????????# """ #??? | | ??????????????????## #??????????# """ #??? | | ???????????????????###### #??????????# #??? | | ????????????????????????# #??????????########??? | | ????????????????????????# #????????????????????? | | ????????????????????????# #????????????????????? | | ???????????????????????## ##???????????????????? | | ???????????????????????# #???????????????????? | | ???????????????????????# Y #???????????????????? | | ???????????????????????# #???????????????????? | | ???????????????????????# Y #???????????????????? | | ???????????????????????# #???????????????????? | | ???????????????????????## ##???????????????????? | | ????????????????????????# #????????????????????? | | ????????????????????????#g #????????????????????? | | ????????????????????????# #????????????????????? | | ???????????????########## Y #????????????????????? | | ???????????????# s # #????????????????????? | | ???????????????# """"" # ##+###???????????????? | | ???????????????# """"" /@ ????????? | | ???????????????# """"" # ????????? | | ???????????????# """"" # ????????? | | ???????????????# """"" ######+#########?????????? | | ???????????????# """"" #????????????????????????? | | ???????????????# """"" #????????????????????????? | | ???????????????# #????????????????????????? | | ???????????????##########????????????????????????? | | ?????????????????????????????????????????????????? | | ?????????????????????????????????????????????????? | | ?????????????????????????????????????????????????? | | ?????????????????????????????????????????????????? | | ?????????????????????????????????????????????????? | | ?????????????????????????????????????????????????? | | ?????????????????????????????????????????????????? | | ?????????????????????????????????????????????????? | | ?????????????????????????????????????????????????? | | ?????????????????????????????????????????????????? | | ?????????????????????????????????????????????????? | | ?????????????????????????????????????????????????? | | ?????????????????????????????????????????????????? | | ?????????????????????????????????????????????????? | | ?????????????????????????????????????????????????? | | ?????????????????????????????????????????????????? | | ?????????????????????????????????????????????????? | +----------------------------------------------------+ Best States ------------- Heat Dissipation 39 Energy Generation 15 Energy Capacity 275 Matter Stores 300 Matter Capacity 300 Sight Range 16 Terrain Scan Density 10 Evasion (%) 63 Item Schematics ----------------- None Robot Schematics ------------------ None Fabricated ------------ Nothing Alien Tech Used ----------------- None Achievements -------------- I Survived The Infestation Challenges ------------ None Game ------ Seed AlloyImprinterComputer Manual? 0 Play Time 00:20:55 Cumulative 7.9 hours Start 2021.06.14 @ 22:47:21 End 2021.06.14 @ 23:07:45 Sessions 1 Manual Loads 0 Difficulty Rogue Special Mode None Game No. 10 Rogue 7 Adventurer 3 Explorer 0 Win Type - Total 0 Types 0/0/0/0/0/0/0/0/0 Lore% 6 Gallery% 10 Achievement% 12 Wizard Run 0 Options --------- ASCII 0 Keyboard 0 Movement Numpad Keybinds 0 Fullscreen 2 Font 32/Terminus Map View 76x50 Tactical HUD 0 Map Filters NONE Filters NONE Steam 1 RUN: a489c4ca-041f-4d1d-8a3f-85132e65c728